fUST/lending_fUST_20250801
["ID","MTS","AMOUNT","RATE_DAILY","PERIOD"]
[376474458,1753990248487,-151.0,0.00019726,2]
[376474459,1753990248496,-151.181492,0.00019726,2]
[376474461,1753990248505,-834.37,0.00019726,2]
[376474463,1753990248515,-606.43,0.00019726,2]
[376474465,1753990248525,-460.0,0.00019726,2]
[376474467,1753990248534,-460.0,0.00019726,2]
[376474469,1753990248543,-482.258992,0.00019726,2]
[376474471,1753990248552,-482.258992,0.00019726,2]
[376474473,1753990248561,-482.258992,0.00019726,2]
[376474475,1753990248571,-482.258992,0.00019726,2]
[376474476,1753990248580,-151.0,0.00019726,2]
[376474478,1753990248589,-151.0,0.00019726,2]
[376474480,1753990248599,-523.19,0.00019726,2]
[376474482,1753990248608,-1256.9,0.00019726,2]
[376474484,1753990248617,-460.0,0.00019726,2]
[376474486,1753990248627,-460.0,0.00019726,2]
[376474488,1753990248636,-151.0,0.00019726,2]
[376474490,1753990248645,-151.0,0.00019726,2]
[376474492,1753990248655,-460.0,0.00019726,2]
[376474494,1753990248664,-151.0,0.00019726,2]
[376474495,1753990248674,-466.73,0.00019726,2]
[376474497,1753990248683,-574.93,0.00019726,2]
[376474499,1753990248692,-460.0,0.00019726,2]
[376474501,1753990248702,-151.0,0.00019726,2]
[376474503,1753990248711,-460.0,0.00019726,2]
[376474505,1753990248721,-460.0,0.00019726,2]
[376474507,1753990248730,-151.0,0.00019726,2]
[376474509,1753990248739,-151.0,0.00019726,2]
[376474511,1753990248748,-460.0,0.00019726,2]
[376474513,1753990248757,-460.0,0.00019726,2]
[376474514,1753990248767,-783.39,0.00019726,2]
[376474516,1753990248776,-460.0,0.00019726,2]
[376474518,1753990248786,-499.73979,0.00019726,2]
[376474520,1753990248795,-499.73979,0.00019726,2]
[376474522,1753990248805,-499.73979,0.00019726,2]
[376474524,1753990248814,-499.73979,0.00019726,2]
[376474526,1753990248823,-460.0,0.00019726,2]
[376474528,1753990248833,-513.75,0.00019726,2]
[376474530,1753990248842,-151.0,0.00019726,2]
[376474532,1753990248851,-151.0,0.00019726,2]
[376474534,1753990248861,-460.0,0.00019726,2]
[376474535,1753990248870,-636.24,0.00019726,2]
[376474537,1753990248879,-460.0,0.00019726,2]
[376474539,1753990248889,-151.0,0.00019726,2]
[376474541,1753990248898,-151.0,0.00019726,2]
[376474543,1753990248908,-442.49129171,0.00019726,2]
[376474545,1753990248917,-151.0,0.00019726,2]
[376474547,1753990248928,-176.861688,0.00019726,2]
[376474549,1753990248936,-460.0,0.00019726,2]
[376474551,1753990248945,-460.0,0.00019726,2]
[376474553,1753990248955,-460.0,0.00019726,2]
[376474555,1753990248964,-460.0,0.00019726,2]
[376474557,1753990248973,-296.51129216,0.00019726,2]
[376474558,1753990248982,-151.0,0.00019726,2]
[376474560,1753990248991,-151.0,0.00019726,2]
[376474562,1753990249001,-776.93,0.00019726,2]
[376474564,1753990249010,-151.0,0.00019726,2]
[376474566,1753990249019,-189.237563,0.00019726,2]
[376474568,1753990249029,-460.0,0.00019726,2]
[376474570,1753990249038,-460.0,0.00019726,2]
[376474572,1753990249048,-151.0,0.00019726,2]
[376474574,1753990249057,-578.88,0.00019726,2]
[376474576,1753990249066,-151.0,0.00019726,2]
[376474578,1753990249076,-460.0,0.00019726,2]
[376474580,1753990249086,-460.0,0.00019726,2]
[376474582,1753990249095,-151.0,0.00019726,2]
[376474583,1753990249105,-460.0,0.00019726,2]
[376474584,1753990249115,-151.0,0.00019726,2]
[376474585,1753990249124,-583.79,0.00019726,2]
[376474586,1753990249134,-735.0,0.00019726,2]
[376474587,1753990249144,-614.4,0.00019726,2]
[376474588,1753990249154,-151.0,0.00019726,2]
[376474589,1753990249162,-460.0,0.00019726,2]
[376474590,1753990249174,-500.0,0.00019726,2]
[376474591,1753990249185,-151.0,0.00019726,2]
[376474592,1753990249195,-151.0,0.00019726,2]
[376474593,1753990249204,-151.0,0.00019726,2]
[376474594,1753990249213,-460.0,0.00019726,2]
[376474595,1753990249222,-460.0,0.00019726,2]
[376474596,1753990249232,-460.0,0.00019726,2]
[376474597,1753990249242,-151.0,0.00019726,2]
[376474598,1753990249252,-559.48,0.00019726,2]
[376474599,1753990249262,-460.0,0.00019726,2]
[376474600,1753990249271,-460.0,0.00019726,2]
[376474601,1753990249281,-460.0,0.00019726,2]
[376474602,1753990249291,-460.0,0.00019726,2]
[376474603,1753990249300,-460.0,0.00019726,2]
[376474604,1753990249309,-4119.5,0.00019726,2]
[376474605,1753990249319,-546.55,0.00019726,2]
[376474606,1753990249329,-742.14,0.00019726,2]
[376474607,1753990249338,-441.48024448,0.00019726,2]
[376474608,1753990249348,-460.0,0.00019726,2]
[376474609,1753990249356,-854.1,0.00019726,2]
[376474610,1753990249365,-151.0,0.00019726,2]
[376474611,1753990249374,-151.0,0.00019726,2]
[376474612,1753990249383,-908.24,0.00019726,2]
[376474613,1753990249391,-151.0,0.00019726,2]
[376474615,1753990249401,-151.0,0.00019726,2]
[376474616,1753990249410,-151.0,0.00019726,2]
[376474617,1753990249419,-460.0,0.00019726,2]
[376474618,1753990249429,-3267.32,0.00019726,2]
[376474619,1753990249438,-215.869112,0.00019726,2]
[376474620,1753990249447,-460.0,0.00019726,2]
[376474621,1753990249456,-2121.53,0.00019726,2]
[376474622,1753990249465,-460.0,0.00019726,2]
[376474623,1753990249475,-9612.01,0.00019726,2]
[376474624,1753990249484,-1751.795251,0.00019726,2]
[376474625,1753990249493,-6662.76,0.00019726,2]
[376474626,1753990249502,-460.0,0.00019726,2]
[376474627,1753990249511,-1751.795251,0.00019726,2]
[376474628,1753990249521,-989.51,0.00019726,2]
[376474629,1753990249530,-460.0,0.00019726,2]
[376474631,1753990249539,-3028.98,0.00019726,2]
[376474632,1753990249548,-1109.09,0.00019726,2]
[376474634,1753990249558,-1072.06,0.00019726,2]
[376474636,1753990249567,-2024.83,0.00019726,2]
[376474638,1753990249576,-460.0,0.00019726,2]
[376474640,1753990249585,-950.65,0.00019726,2]
[376474642,1753990249594,-460.0,0.00019726,2]
[376474643,1753990249603,-460.0,0.00019726,2]
[376474644,1753990249612,-1001.86,0.00019726,2]
[376474645,1753990249621,-3115.39,0.00019726,2]
[376474646,1753990249631,-2269.63,0.00019726,2]
[376474647,1753990249640,-2095.28,0.00019726,2]
[376474648,1753990249649,-460.0,0.00019726,2]
[376474649,1753990249658,-151.0,0.00019726,2]
[376474650,1753990249668,-1858.94,0.00019726,2]
[376474651,1753990249679,-460.0,0.00019726,2]
[376474652,1753990249687,-460.0,0.00019726,2]
[376474653,1753990249696,-418.75741517,0.00019726,2]
[376474654,1753990249706,-151.0,0.00019726,2]
[376474655,1753990249715,-151.0,0.00019726,2]
[376474656,1753990249724,-151.0,0.00019726,2]
[376474657,1753990249734,-151.0,0.00019726,2]
[376474658,1753990249743,-460.0,0.00019726,2]
[376474659,1753990249752,-460.0,0.00019726,2]
[376474660,1753990249762,-203.009031,0.00019726,2]
[376474661,1753990249771,-460.0,0.00019726,2]
[376474662,1753990249780,-786.59,0.00019726,2]
[376474663,1753990249789,-291.3638,0.00019726,2]
[376474664,1753990249799,-793.85,0.00019726,2]
[376474665,1753990249808,-151.0,0.00019726,2]
[376474666,1753990249818,-4368.6,0.00019726,2]
[376474667,1753990249827,-460.0,0.00019726,2]
[376474668,1753990249836,-151.0,0.00019726,2]
[376474669,1753990249845,-460.0,0.00019726,2]
[376474670,1753990249854,-460.0,0.00019726,2]
[376474671,1753990249863,-276.36147129,0.00019726,2]
[376474672,1753990249872,-1118.33,0.00019726,2]
[376474673,1753990249881,-151.0,0.00019726,2]
[376474674,1753990249890,-9393.42,0.00019726,2]
[376474675,1753990249899,-460.0,0.00019726,2]
[376474676,1753990249908,-434.92,0.00019726,2]
[376474678,1753990249918,-582.2192413,0.00019726,2]
[376474680,1753990249929,-151.0,0.00019726,2]
[376474682,1753990249938,-3281.62,0.00019726,2]
[376474684,1753990249947,-567.17,0.00019726,2]
[376474686,1753990249957,-460.0,0.00019726,2]
[376474689,1753990249967,-460.0,0.00019726,2]
[376474691,1753990249976,-460.0,0.00019726,2]
[376474693,1753990249985,-460.0,0.00019726,2]
[376474695,1753990249994,-876.04,0.00019726,2]
[376474697,1753990250003,-460.0,0.00019726,2]
[376474699,1753990250013,-460.0,0.00019726,2]
[376474701,1753990250022,-460.0,0.00019726,2]
[376474703,1753990250031,-1419.24,0.00019726,2]
[376474705,1753990250041,-3085.46,0.00019726,2]
[376474707,1753990250050,-500.47,0.00019726,2]
[376474709,1753990250059,-974.2,0.00019726,2]
[376474711,1753990250069,-4151.13,0.00019726,2]
[376474713,1753990250078,-460.0,0.00019726,2]
[376474715,1753990250087,-460.0,0.00019726,2]
[376474717,1753990250097,-460.0,0.00019726,2]
[376474719,1753990250107,-460.0,0.00019726,2]
[376474721,1753990250116,-460.0,0.00019726,2]
[376474723,1753990250125,-597.67471312,0.00019726,2]
[376474725,1753990250135,-991.18,0.00019726,2]
[376474727,1753990250145,-1058.69,0.00019726,2]
[376474729,1753990250154,-947.34,0.00019726,2]
[376474742,1753990250279,-4301.56,0.00019726,2]
[376474743,1753990250289,-985.5,0.00019726,2]
[376474745,1753990250299,-460.0,0.00019726,2]
[376474747,1753990250309,-533.05195307,0.00019726,2]
[376474749,1753990250318,-151.0,0.00019726,2]
[376474751,1753990250327,-151.0,0.00019726,2]
[376474753,1753990250337,-151.0,0.00019726,2]
[376474754,1753990250347,-567.76,0.00019726,2]
[376474755,1753990250356,-161.8383241,0.00019726,2]
[376474756,1753990250365,-151.0,0.00019726,2]
[376474757,1753990250374,-460.0,0.00019726,2]
[376474759,1753990250384,-465.78,0.00019726,2]
[376474761,1753990250393,-460.0,0.00019726,2]
[376474763,1753990250402,-1350.14,0.00019726,2]
[376474765,1753990250411,-460.0,0.00019726,2]
[376474767,1753990250420,-747.5,0.00019726,2]
[376474769,1753990250429,-717.79,0.00019726,2]
[376474770,1753990250439,-433.26844,0.00019726,2]
[376474772,1753990250449,-433.26844,0.00019726,2]
[376474774,1753990250458,-1030.81,0.00019726,2]
[376474776,1753990250468,-1159.61,0.00019726,2]
[376474778,1753990250477,-956.06,0.00019726,2]
[376474781,1753990250487,-860.2,0.00019726,2]
[376474782,1753990250496,-151.0,0.00019726,2]
[376474783,1753990250506,-3069.52,0.00019726,2]
[376474784,1753990250516,-460.0,0.00019726,2]
[376474785,1753990250525,-559.29,0.00019726,2]
[376474786,1753990250535,-1643.05,0.00019726,2]
[376474787,1753990250545,-460.0,0.00019726,2]
[376474788,1753990250554,-4195.71,0.00019726,2]
[376474789,1753990250564,-460.0,0.00019726,2]
[376474790,1753990250573,-460.0,0.00019726,2]
[376474791,1753990250583,-460.0,0.00019726,2]
[376474792,1753990250593,-460.0,0.00019726,2]
[376474793,1753990250603,-531.47,0.00019726,2]
[376474794,1753990250612,-460.0,0.00019726,2]
[376474795,1753990250622,-460.0,0.00019726,2]
[376474796,1753990250631,-953.52,0.00019726,2]
[376474797,1753990250640,-566.52,0.00019726,2]
[376474798,1753990250650,-798.16,0.00019726,2]
[376474799,1753990250659,-564.54806355,0.00019726,2]
[376474800,1753990250669,-500.07,0.00019726,2]
[376474801,1753990250680,-524.46,0.00019726,2]
[376474802,1753990250689,-551.72,0.00019726,2]
[376474803,1753990250699,-1206.0,0.00019726,2]
[376474804,1753990250708,-1093.5,0.00019726,2]
[376474805,1753990250718,-460.0,0.00019726,2]
[376474806,1753990250727,-1010.3,0.00019726,2]
[376474807,1753990250737,-403.82874349,0.00019726,2]
[376474808,1753990250746,-924.11,0.00019726,2]
[376474809,1753990250756,-600.0,0.00019773,2]
[376474810,1753990250766,-524.23450938,0.00019773,2]
[376474811,1753990250776,-508.56017954,0.00019773,2]
[376474812,1753990250786,-500.0,0.00019773,2]
[376474813,1753990250795,-438.26120455,0.00019773,2]
[376474814,1753990250805,-513.72045867,0.00019773,2]
[376474815,1753990250815,-500.0,0.00019773,2]
[376474816,1753990250824,-500.0,0.00019773,2]
[376474817,1753990250833,-593.24961039,0.00019773,2]
[376474818,1753990250843,-500.0,0.00019773,2]
[376474819,1753990250853,-516.04258025,0.00019773,2]
[376474820,1753990250862,-238.91342971,0.00019773,2]
[376474821,1753990250872,-151.0,0.00019773,2]
[376474822,1753990250881,-151.0,0.00019773,2]
[376474823,1753990250890,-151.0,0.00019773,2]
[376474824,1753990250900,-151.0,0.00019773,2]
[376474825,1753990250909,-151.0,0.00019773,2]
[376474826,1753990250919,-151.0,0.00019773,2]
[376474828,1753990250929,-433.26844,0.00019773,2]
[376474830,1753990250938,-433.26844,0.00019773,2]
[376474831,1753990250948,-151.0,0.00019773,2]
[376474833,1753990250957,-151.0,0.000198,2]
[376474835,1753990250966,-151.0,0.000198,2]
[376474837,1753990250976,-1078.778731,0.0001984,5]
[376474839,1753990250985,-180.02511878,0.00019845,2]
[376474841,1753990250994,-1000.0,0.0001986,5]
[376474843,1753990251004,-1000.0,0.0001988,5]
[376474845,1753990251013,-816.0,0.00019892,2]
[376474847,1753990251022,-1000.0,0.000199,5]
[376474849,1753990251032,-171.33106849,0.000199,2]
[376474851,1753990251041,-151.0,0.000199,2]
[376474853,1753990251050,-7802.14122759,0.000199,2]
[376474855,1753990251059,-507.0,0.00019908,2]
[376474857,1753990251067,-1000.0,0.0001992,5]
[376474859,1753990251076,-74.6331571,0.0001994,5]
[376474881,1753990251291,-460.0,0.00019178,2]
[376474882,1753990251300,-460.0,0.00019726,2]
[376474884,1753990251310,-925.3668429,0.0001994,5]
[376474887,1753990251319,-1000.0,0.0001996,5]
[376474889,1753990251328,-500.0,0.00019973,2]
[376474890,1753990251337,-501.9958024,0.00019973,2]
[376474892,1753990251346,-150.0,0.00019973,2]
[376474894,1753990251355,-1155.9649899,0.00019973,2]
[376474896,1753990251364,-1000.0,0.0001998,5]
[376474898,1753990251373,-151.0,0.0002,2]
[376474900,1753990251383,-198.71000557,0.0002,2]
[376474902,1753990251392,-151.0,0.0002,2]
[376474905,1753990251402,-151.0,0.0002,2]
[376474906,1753990251411,-198.0,0.0002,2]
[376474908,1753990251421,-735.0,0.0002,2]
[376474910,1753990251430,-255.0,0.0002,2]
[376474912,1753990251439,-500.0,0.0002,2]
[376474914,1753990251448,-202.42119693,0.0002,2]
[376474916,1753990251457,-151.0,0.0002,2]
[376474918,1753990251467,-165.28579326,0.0002,20]
[376474920,1753990251476,-151.0,0.0002,2]
[376474922,1753990251485,-151.0,0.0002,2]
[376474924,1753990251494,-151.0,0.0002,2]
[376474926,1753990251503,-151.0,0.0002,2]
[376474928,1753990251511,-151.0,0.0002,2]
[376474930,1753990251521,-454.216416,0.0002,2]
[376474932,1753990251530,-454.216416,0.0002,2]
[376474934,1753990251539,-454.216416,0.0002,2]
[376474936,1753990251549,-454.216416,0.0002,2]
[376474938,1753990251558,-153.530051,0.0002,2]
[376474940,1753990251567,-153.530051,0.0002,2]
[376474942,1753990251576,-153.530051,0.0002,2]
[376474944,1753990251585,-153.530051,0.0002,2]
[376474946,1753990251594,-151.0,0.0002,2]
[376474948,1753990251603,-151.0,0.0002,2]
[376474950,1753990251612,-151.0,0.0002,2]
[376474952,1753990251621,-151.0,0.0002,2]
[376474954,1753990251630,-151.0,0.0002,2]
[376474956,1753990251639,-460.0,0.0002,2]
[376474957,1753990251649,-460.0,0.0002,2]
[376474959,1753990251657,-151.0,0.0002,2]
[376474961,1753990251668,-151.0,0.0002,2]
[376474963,1753990251678,-151.0,0.0002,2]
[376474965,1753990251687,-151.0,0.0002,2]
[376474967,1753990251696,-460.0,0.0002,2]
[376474969,1753990251705,-151.0,0.0002,2]
[376474971,1753990251715,-460.0,0.0002,2]
[376474973,1753990251724,-465.6972786,0.0002,2]
[376474975,1753990251733,-460.0,0.0002,2]
[376474977,1753990251742,-151.0,0.0002,2]
[376474979,1753990251751,-460.0,0.0002,2]
[376474981,1753990251761,-151.0,0.0002,2]
[376474983,1753990251771,-568.3,0.0002,2]
[376474985,1753990251780,-460.0,0.0002,2]
[376474987,1753990251789,-460.0,0.0002,2]
[376474989,1753990251798,-460.0,0.0002,2]
[376474991,1753990251807,-151.0,0.0002,2]
[376474993,1753990251817,-151.0,0.0002,2]
[376474995,1753990251826,-314.60891328,0.0002,2]
[376474997,1753990251835,-151.0,0.0002,2]
[376474999,1753990251845,-151.0,0.0002,2]
[376475001,1753990251854,-151.0,0.0002,2]
[376475003,1753990251863,-151.0,0.0002,2]
[376475005,1753990251872,-681.78,0.0002,2]
[376475007,1753990251881,-460.0,0.0002,2]
[376475009,1753990251891,-460.0,0.0002,2]
[376475011,1753990251899,-460.0,0.0002,2]
[376475013,1753990251909,-460.0,0.0002,2]
[376475015,1753990251918,-151.0,0.0002,2]
[376475017,1753990251927,-153.363126,0.0002,2]
[376475019,1753990251936,-834.37,0.0002,2]
[376475021,1753990251945,-606.43,0.0002,2]
[376475023,1753990251954,-460.0,0.0002,2]
[376475025,1753990251964,-440.49143142,0.0002,2]
[376475027,1753990251973,-482.258992,0.0002,2]
[376475029,1753990251982,-482.258992,0.0002,2]
[376475031,1753990251992,-212.746713,0.0002,2]
[376475033,1753990252003,-212.746713,0.0002,2]
[376475035,1753990252012,-151.0,0.0002,2]
[376475037,1753990252020,-523.19,0.0002,2]
[376475039,1753990252030,-1256.9,0.0002,2]
[376475040,1753990252040,-432.12734174,0.0002,2]
[376475043,1753990252053,-27.87265826,0.0002,2]
[376475045,1753990252066,-460.0,0.0002,2]
[376475046,1753990252076,-1000.0,0.0002,5]
[376475047,1753990252085,-460.0,0.0002,2]
[376475048,1753990252094,-151.0,0.0002,2]
[376475049,1753990252103,-466.73,0.0002,2]
[376475050,1753990252112,-574.93,0.0002,2]
[376475051,1753990252122,-460.0,0.0002,2]
[376475052,1753990252131,-151.0,0.0002,2]
[376475053,1753990252140,-460.0,0.0002,2]
[376475054,1753990252150,-460.0,0.0002,2]
[376475055,1753990252160,-151.0,0.0002,2]
[376475056,1753990252169,-460.0,0.0002,2]
[376475057,1753990252188,-460.0,0.0002,2]
[376475058,1753990252197,-783.39,0.0002,2]
[376475059,1753990252207,-499.73979,0.0002,2]
[376475060,1753990252215,-499.73979,0.0002,2]
[376475061,1753990252225,-300.38131022,0.0002,2]
[376475062,1753990252234,-513.75,0.0002,2]
[376475063,1753990252243,-151.0,0.0002,2]
[376475064,1753990252252,-636.24,0.0002,2]
[376475065,1753990252263,-460.0,0.0002,2]
[376475067,1753990252272,-151.0,0.0002,2]
[376475069,1753990252281,-460.0,0.0002,2]
[376475071,1753990252291,-460.0,0.0002,2]
[376475072,1753990252300,-460.0,0.0002,2]
[376475073,1753990252309,-253.12936863,0.0002,2]
[376475074,1753990252318,-151.0,0.0002,2]
[376475075,1753990252327,-776.93,0.0002,2]
[376475076,1753990252336,-460.0,0.0002,2]
[376475077,1753990252345,-460.0,0.0002,2]
[376475078,1753990252354,-151.0,0.0002,2]
[376475079,1753990252364,-578.88,0.0002,2]
[376475080,1753990252375,-151.0,0.0002,2]
[376475081,1753990252385,-472.85873693,0.0002,2]
[376475082,1753990252394,-460.0,0.0002,2]
[376475083,1753990252403,-151.0,0.0002,2]
[376475084,1753990252413,-460.0,0.0002,2]
[376475085,1753990252422,-151.0,0.0002,2]
[376475086,1753990252432,-583.79,0.0002,2]
[376475087,1753990252441,-614.4,0.0002,2]
[376475088,1753990252451,-460.0,0.0002,2]
[376475089,1753990252460,-151.0,0.0002,2]
[376475090,1753990252469,-151.0,0.0002,2]
[376475091,1753990252478,-151.0,0.0002,2]
[376475092,1753990252487,-151.0,0.0002,2]
[376475093,1753990252497,-460.0,0.0002,2]
[376475094,1753990252506,-460.0,0.0002,2]
[376475107,1753990252650,-460.0,0.0002,2]
[376475109,1753990252661,-559.48,0.0002,2]
[376475110,1753990252672,-460.0,0.0002,2]
[376475112,1753990252686,-460.0,0.0002,2]
[376475114,1753990252696,-473.01884688,0.0002,2]
[376475116,1753990252706,-460.0,0.0002,2]
[376475118,1753990252716,-593.65623956,0.0002,2]
[376475120,1753990252727,-4119.5,0.0002,2]
[376475122,1753990252737,-546.55,0.0002,2]
[376475123,1753990252747,-742.14,0.0002,2]
[376475125,1753990252758,-150.0,0.0002,10]
[376475127,1753990252768,-854.1,0.0002,2]
[376475129,1753990252778,-151.0,0.0002,2]
[376475131,1753990252788,-151.0,0.0002,2]
[376475133,1753990252799,-151.0,0.0002,2]
[376475134,1753990252809,-908.24,0.0002,2]
[376475135,1753990252818,-151.0,0.0002,2]
[376475136,1753990252828,-151.0,0.0002,2]
[376475137,1753990252837,-151.0,0.0002,2]
[376475138,1753990252846,-151.0,0.0002,2]
[376475139,1753990252856,-3267.32,0.0002,2]
[376475140,1753990252866,-460.0,0.0002,2]
[376475141,1753990252875,-2121.53,0.0002,2]
[376475142,1753990252884,-465.30927269,0.0002,2]
[376475143,1753990252893,-9612.01,0.0002,2]
[376475144,1753990252903,-1751.795251,0.0002,2]
[376475145,1753990252912,-1751.795251,0.0002,2]
[376475146,1753990252922,-6662.76,0.0002,2]
[376475147,1753990252934,-460.0,0.0002,2]
[376475148,1753990252943,-1751.795251,0.0002,2]
[376475149,1753990252952,-1751.795251,0.0002,2]
[376475150,1753990252961,-989.51,0.0002,2]
[376475151,1753990252970,-460.0,0.0002,2]
[376475152,1753990252979,-3028.98,0.0002,2]
[376475153,1753990252988,-1109.09,0.0002,2]
[376475154,1753990252997,-1072.06,0.0002,2]
[376475155,1753990253007,-2024.83,0.0002,2]
[376475156,1753990253016,-950.65,0.0002,2]
[376475157,1753990253025,-460.0,0.0002,2]
[376475158,1753990253035,-460.0,0.0002,2]
[376475159,1753990253044,-460.0,0.0002,2]
[376475160,1753990253054,-3115.39,0.0002,2]
[376475161,1753990253063,-1001.86,0.0002,2]
[376475162,1753990253072,-2269.63,0.0002,2]
[376475163,1753990253081,-460.0,0.0002,2]
[376475165,1753990253091,-2095.28,0.0002,2]
[376475167,1753990253100,-151.0,0.0002,2]
[376475169,1753990253110,-1858.94,0.0002,2]
[376475171,1753990253119,-571.66412621,0.0002,2]
[376475173,1753990253129,-460.0,0.0002,2]
[376475175,1753990253138,-151.0,0.0002,2]
[376475177,1753990253148,-460.0,0.0002,2]
[376475179,1753990253158,-151.0,0.0002,2]
[376475181,1753990253169,-460.0,0.0002,2]
[376475183,1753990253187,-151.0,0.0002,2]
[376475185,1753990253197,-460.0,0.0002,2]
[376475187,1753990253206,-786.59,0.0002,2]
[376475189,1753990253216,-793.85,0.0002,2]
[376475191,1753990253226,-4368.6,0.0002,2]
[376475193,1753990253236,-460.0,0.0002,2]
[376475195,1753990253245,-151.0,0.0002,2]
[376475197,1753990253256,-151.0,0.0002,2]
[376475199,1753990253266,-460.0,0.0002,2]
[376475201,1753990253276,-460.0,0.0002,2]
[376475203,1753990253286,-1118.33,0.0002,2]
[376475205,1753990253296,-9393.42,0.0002,2]
[376475207,1753990253305,-460.0,0.0002,2]
[376475209,1753990253314,-151.0,0.0002,2]
[376475211,1753990253324,-151.0,0.0002,2]
[376475213,1753990253333,-151.0,0.0002,2]
[376475215,1753990253343,-3281.62,0.0002,2]
[376475217,1753990253352,-567.17,0.0002,2]
[376475219,1753990253362,-460.0,0.0002,2]
[376475221,1753990253371,-460.0,0.0002,2]
[376475223,1753990253380,-460.0,0.0002,2]
[376475225,1753990253390,-876.04,0.0002,2]
[376475227,1753990253399,-460.0,0.0002,2]
[376475229,1753990253408,-460.0,0.0002,2]
[376475231,1753990253417,-460.0,0.0002,2]
[376475233,1753990253430,-460.0,0.0002,2]
[376475235,1753990253440,-48535.7476427,0.0002,2]
[376475237,1753990253449,-1419.24,0.0002,2]
[376475239,1753990253457,-3085.46,0.0002,2]
[376475241,1753990253466,-500.47,0.0002,2]
[376475243,1753990253475,-974.2,0.0002,2]
[376475245,1753990253485,-2335.68797043,0.0002,2]
[376475302,1753990254038,-460.0,0.00019178,2]
[376475305,1753990254052,-460.0,0.00019178,2]
[376475307,1753990254067,-460.0,0.00019178,2]
[376475309,1753990254080,-460.0,0.00019452,2]
[376475312,1753990254092,-477.62,0.00019452,2]
[376475314,1753990254106,-1815.44202957,0.0002,2]
[376475316,1753990254119,-460.0,0.0002,2]
[376475319,1753990254132,-460.0,0.0002,2]
[376475321,1753990254146,-460.0,0.0002,2]
[376475324,1753990254159,-460.0,0.0002,2]
[376475326,1753990254171,-460.0,0.0002,2]
[376475328,1753990254185,-991.18,0.0002,2]
[376475330,1753990254198,-1058.69,0.0002,2]
[376475332,1753990254213,-947.34,0.0002,2]
[376475335,1753990254227,-4301.56,0.0002,2]
[376475337,1753990254237,-985.5,0.0002,2]
[376475339,1753990254248,-402.48536613,0.0002,2]
[376475341,1753990254262,-151.0,0.0002,2]
[376475343,1753990254274,-291.04725278,0.0002,2]
[376475355,1753990254373,-460.0,0.00019178,2]